lending/lending_fUSD_20240112
["ID","MTS","AMOUNT","RATE_DAILY","PERIOD"]
[311429862,1705096234887,-4517.25624389,0.00022453,2]
[311429863,1705096234898,-1061.32060187,0.00022453,2]
[311429864,1705096234910,-3984.1450595,0.00022453,2]
[311429865,1705096234921,-27620.12637236,0.00022453,2]
[311429866,1705096234932,-2264.87771596,0.00022453,2]
[311429867,1705096234944,-937.93475933,0.00022453,2]
[311429868,1705096234956,-1305.66553571,0.00022453,2]
[311429869,1705096234968,-442.76851,0.00022453,2]
[311429870,1705096235014,-819.09312441,0.00022453,2]
[311429871,1705096235026,-9040.24885938,0.00022453,2]
[311429872,1705096235037,-314.08501124,0.00022453,2]
[311429873,1705096235074,-1495.10991762,0.00022453,2]
[311429874,1705096235085,-760.81927471,0.00022453,2]
[311429875,1705096235116,-1071.35837695,0.00022453,2]
[311429876,1705096235127,-51712.15794778,0.00022453,2]
[311429877,1705096235138,-55083.82065023,0.00022454,2]
[311429894,1705096237545,-6031.21868403,0.00022454,2]
[311429896,1705096237559,-1436.6,0.00022454,2]
[311429898,1705096237572,-11628.81118179,0.00022454,2]
[311429901,1705096237584,-493.1829178,0.00022454,2]
[311429903,1705096237596,-303.80781208,0.00022454,2]
[311429905,1705096237607,-551.06272696,0.00022454,2]
[311429907,1705096237620,-1430.32383248,0.00022454,2]
[311429911,1705096237641,-495.64396674,0.00022454,2]
[311429916,1705096237684,-22545.52822789,0.00022454,2]
[311429918,1705096237693,-155.81,0.00022495,2]
[311429920,1705096237703,-6134.07088639,0.000225,2]
[311429921,1705096237715,-724.82380952,0.000225,2]
[311429922,1705096237727,-122347.48447316,0.000225,2]
[311429923,1705096237737,-150.0,0.000225,2]
[311429924,1705096237747,-18804.31433526,0.00022553,2]
[311429925,1705096237758,-20773.59139163,0.00022555,2]
[311429926,1705096237767,-331.53647864,0.00022667,2]
[311429927,1705096237777,-493.79950223,0.00022667,2]
[311429928,1705096237787,-883.71,0.00022721,2]
[311429929,1705096237796,-155.81,0.00022737,2]
[311429930,1705096237806,-408.52891632,0.00022782,2]
[311429931,1705096237815,-165.97418147,0.00022782,2]
[311429932,1705096237824,-1244.83951355,0.00022797,2]
[311429933,1705096237834,-165.97418147,0.000228,2]
[311429934,1705096237844,-5800.0,0.00022815,2]
[311429935,1705096237853,-5800.0,0.00022824,2]
[311429936,1705096237864,-5800.0,0.00022832,2]
[311429937,1705096237873,-58000.0,0.00022874,2]
[311429938,1705096237883,-58000.0,0.00022882,2]
[311429939,1705096237894,-8569.39839472,0.00022886,2]
[311429940,1705096237903,-58000.0,0.00022891,2]
[311429941,1705096237913,-3038.48329408,0.00022894,2]
[311429942,1705096237922,-163.7690261,0.00022894,2]
[311429952,1705096238097,-198.87132187,0.00022894,2]
[311429953,1705096238114,-233.62449319,0.00022894,2]
[311429955,1705096238123,-940.88815019,0.00022895,2]
[311429957,1705096238133,-155.0,0.00022895,2]
[311429959,1705096238143,-16739.78735962,0.00022895,2]
[311429961,1705096238152,-207.56937403,0.00022896,2]
[311429963,1705096238161,-1069.15058471,0.00022896,2]
[311429965,1705096238171,-155.0,0.00022896,2]
[311429967,1705096238180,-580.66182185,0.00022896,2]
[311429969,1705096238189,-256.92506171,0.00022896,2]
[311429971,1705096238198,-6425.39523629,0.00022896,2]
[311429973,1705096238208,-177.47706228,0.00022896,2]
[311429975,1705096238217,-4370.34425691,0.00022896,2]
[311429977,1705096238226,-376.4645703,0.00022896,2]
[311429979,1705096238236,-381.39125751,0.00022896,2]
[311429981,1705096238245,-270.2166863,0.00022896,2]
[311429983,1705096238254,-1189.23243156,0.00022896,2]
[311429985,1705096238263,-338.40757311,0.00022896,2]
[311429986,1705096238273,-515.89362197,0.00022896,2]
[311429987,1705096238282,-155.0855656,0.00022896,2]
[311429988,1705096238291,-11510.20098288,0.00022896,2]
[311429989,1705096238301,-643.4185131,0.00022896,2]
[311429990,1705096238310,-262.06194607,0.00022896,2]
[311429991,1705096238319,-2526.56254031,0.00022896,2]
[311429992,1705096238328,-243.52026979,0.00022896,2]
[311429993,1705096238337,-589.45823217,0.00022896,2]
[311429994,1705096238347,-2014.78814012,0.00022897,2]
[311429995,1705096238356,-504924.79064027,0.00022898,2]
[311429996,1705096238367,-20924.1239965,0.000229,2]
[311429997,1705096238380,-37075.8760035,0.000229,2]
[311429998,1705096238389,-155.81,0.00022979,2]
[311429999,1705096238398,-800.0,0.00022986,2]
[311430000,1705096238407,-5628.33482324,0.00022997,2]
[311430001,1705096238416,-2124.4944747,0.00022998,2]
[311430002,1705096238425,-2142.99004246,0.00022998,2]
[311430003,1705096238434,-933.03463795,0.00023,2]
[311430004,1705096238444,-275.26,0.00023,2]
[311430005,1705096238453,-205.0,0.00023053,2]
[311430006,1705096238462,-201.54,0.00023101,2]
[311430007,1705096238471,-1244.83951355,0.00023221,2]
[311430008,1705096238480,-155.81,0.00023221,2]
[311430009,1705096238489,-1245.72281194,0.00023224,2]
[311430010,1705096238498,-1245.72281194,0.00023452,2]
[311430011,1705096238507,-155.81,0.00023463,2]
[311430012,1705096238517,-1244.83951355,0.00023516,2]
[311430013,1705096238526,-150.0,0.00023535,2]
[311430014,1705096238535,-150.0,0.0002355,2]
[311430015,1705096238545,-150.0,0.00023591,2]
[311430016,1705096238554,-883.71,0.000237,2]
[311430017,1705096238563,-155.81,0.00023705,2]
[311430018,1705096238572,-150.0,0.00023707,2]
[311430019,1705096238581,-150.46768086,0.00023745,2]
[311430020,1705096238591,-12580.36532251,0.0002376,2]
[311430021,1705096238600,-1245.72281194,0.00023797,2]
[311430022,1705096238611,-800.0,0.00023808,2]
[311430023,1705096238620,-1244.83951355,0.00023819,2]
[311430024,1705096238630,-48823.0,0.000239,2]
[311430025,1705096238640,-155.81,0.00023947,2]
[311430026,1705096238649,-1202.14844517,0.00023998,2]
[311430027,1705096238659,-2616.11953545,0.00023998,2]
[311430028,1705096238671,-1441.28732171,0.00023998,2]
[311430029,1705096238684,-3323.78268181,0.00023998,2]
[311430030,1705096238694,-197.79593944,0.00023998,2]
[311430031,1705096238703,-14160.83376585,0.00023999,2]
[311430032,1705096238712,-430.99724455,0.00024,2]
[311430033,1705096238722,-400.0,0.00024,3]
[311430034,1705096238731,-162.3,0.00024012,2]
[311430035,1705096238740,-162.31,0.00024053,2]
[311430036,1705096238750,-155.37292417,0.000241,2]
[311430037,1705096238760,-234.81,0.00024103,2]
[311430038,1705096238769,-1244.83951355,0.00024134,2]
[311430039,1705096238779,-1245.72281194,0.00024163,2]
[311430040,1705096238788,-162.3,0.00024229,2]
[311430041,1705096238797,-168.41,0.00024297,2]
[311430042,1705096238807,-168.21,0.00024297,2]
[311430043,1705096238816,-577.35,0.00024378,2]
[311430044,1705096238825,-420.0,0.00024384,2]
[311430045,1705096238835,-8569.39839469,0.00024424,2]
[311430046,1705096238844,-162.3,0.00024445,2]
[311430047,1705096238853,-758.08,0.00024478,2]
[311430048,1705096238862,-175.56,0.00024499,2]
[311430049,1705096238871,-1245.72281194,0.00024503,2]
[311430050,1705096238881,-302.4,0.00024528,2]
[311430051,1705096238890,-1244.83951355,0.00024608,2]
[311430052,1705096238900,-250.0,0.00024658,2]
[311430053,1705096238909,-162.3,0.00024661,2]
[311430054,1705096238920,-883.71,0.00024678,2]
[311430055,1705096238930,-210.0,0.00024695,2]
[311430056,1705096238940,-1244.83951355,0.00024708,2]
[311430057,1705096238949,-177.5,0.00024813,2]
[311430058,1705096238959,-162.3,0.00024878,2]
[311430059,1705096238968,-205.0,0.000249,4]
[311430060,1705096238978,-303.07385153,0.00025,2]
[311430061,1705096238987,-1161.9461004,0.00025,2]
[311430062,1705096238996,-201.78427875,0.00025,2]
[311430063,1705096239007,-167.16432493,0.00025,2]
[311430064,1705096239017,-162.3,0.00025094,2]
[311430065,1705096239026,-162.3,0.0002531,2]
[311430066,1705096239036,-175.56,0.00025391,2]
[311430067,1705096239045,-162.3,0.00025527,2]
[311430068,1705096239055,-883.71,0.00025657,2]
[311430069,1705096239064,-162.3,0.00025743,2]
[311430070,1705096239073,-162.3,0.00025959,2]
[311430071,1705096239083,-8569.39839469,0.00025961,2]
[311430072,1705096239093,-450.0,0.00026,3]
[311430073,1705096239104,-150.0,0.00026079,2]
[311430074,1705096239115,-162.31,0.00026121,2]
[311430075,1705096239124,-177.5,0.00026195,2]
[311430076,1705096239134,-175.56,0.00026283,2]
[311430077,1705096239143,-587.0,0.00026486,2]
[311430078,1705096239153,-2636.1,0.00026575,2]
[311430079,1705096239162,-10797.71,0.00026575,2]
[311430080,1705096239172,-883.71,0.00026635,2]
[311430081,1705096239181,-577.35,0.00026641,2]
[311430082,1705096239191,-1000.0,0.00026699,2]
[311430083,1705096239200,-205.0,0.00026747,7]
[311430084,1705096239209,-415.58947133,0.00027,2]
[311430085,1705096239219,-12283.43506918,0.00027,2]
[311430086,1705096239228,-4000.0,0.00027,2]
[311430087,1705096239238,-175.56,0.00027176,2]
[311430088,1705096239248,-758.08,0.00027197,2]
[311430089,1705096239257,-302.4,0.00027253,2]
[311430090,1705096239267,-150.0,0.00027397,2]
[311430091,1705096239276,-3000.0,0.00027397,2]
[311430092,1705096239286,-3000.0,0.00027397,2]
[311430093,1705096239295,-3000.0,0.00027397,2]
[311430094,1705096239304,-265.6479652,0.00027397,2]
[311430095,1705096239313,-250.0,0.00027397,2]
[311430096,1705096239323,-4282.25,0.00027397,2]
[311430097,1705096239332,-5687.92805834,0.000274,2]
[311430098,1705096239341,-8569.39839469,0.00027499,2]
[311430099,1705096239350,-4282.25,0.00027556,2]
[311430100,1705096239361,-883.71,0.00027613,2]
[311430102,1705096239370,-4282.25,0.00027714,2]
[311430103,1705096239379,-1931.0,0.00027792,2]
[311430104,1705096239388,-282.2,0.00027792,2]
[311430105,1705096239397,-19678.0,0.00027792,2]
[311430106,1705096239406,-2901.0,0.00027792,2]
[311430107,1705096239415,-2275.785,0.00027792,2]
[311430108,1705096239424,-4632.472,0.00027792,2]
[311430109,1705096239434,-4166.0,0.00027792,2]
[311430110,1705096239443,-4097.995,0.00027792,2]
[311430111,1705096239453,-5566.0,0.00027792,2]
[311430112,1705096239462,-250.0,0.00027792,2]
[311430113,1705096239471,-1028.0,0.00027792,2]
[311430114,1705096239480,-256.349,0.00027792,2]
[311430115,1705096239489,-197.0,0.00027792,2]
[311430116,1705096239498,-156.0,0.00027792,2]
[311430117,1705096239508,-226.399,0.00027792,2]
[311430118,1705096239517,-162.554,0.00027792,2]
[311430119,1705096239526,-171.0,0.00027792,2]
[311430120,1705096239535,-236.164,0.00027792,2]
[311430121,1705096239544,-250.0,0.00027792,2]
[311430122,1705096239553,-150.0,0.00027792,2]
[311430123,1705096239563,-4282.25,0.00027872,2]
[311430124,1705096239572,-500.0,0.00028,3]
[311430125,1705096239582,-687.85574589,0.00028,2]
[311430126,1705096239591,-200.0,0.00028,2]
[311430127,1705096239600,-4282.25,0.0002803,2]
[311430128,1705096239611,-175.56,0.00028068,2]
[311430129,1705096239620,-4282.25,0.00028189,2]
[311430130,1705096239629,-168.41,0.00028307,2]
[311430131,1705096239639,-168.21,0.00028307,2]
[311430132,1705096239649,-4282.25,0.00028347,2]
[311430133,1705096239659,-4282.25,0.00028505,2]
[311430134,1705096239669,-883.71,0.00028592,2]
[311430135,1705096239682,-205.0,0.00028595,10]
[311430136,1705096239692,-4282.25,0.00028664,2]
[311430137,1705096239701,-150.0,0.000288,2]
[311430138,1705096239711,-155.0,0.000288,2]
[311430139,1705096239722,-4282.25,0.00028822,2]
[311430140,1705096239731,-1228.0,0.00028866,5]
[311430141,1705096239741,-577.35,0.00028905,2]
[311430142,1705096239752,-175.56,0.0002896,2]
[311430143,1705096239762,-155.12473008,0.00029,2]
[311430144,1705096239771,-8569.39839469,0.00029037,2]
[311430145,1705096239781,-9116.48015352,0.00029189,2]
[311430146,1705096239790,-160.93491156,0.000293,2]
[311430147,1705096239800,-150.0,0.00029348,2]
[311430148,1705096239810,-5281.42063444,0.000294,6]
[311430149,1705096239820,-332.46405333,0.000294,2]
[311430150,1705096239829,-332.46405333,0.000294,2]
[311430151,1705096239839,-332.46405333,0.000294,2]
[311430152,1705096239848,-332.46405333,0.000294,2]
[311430153,1705096239858,-332.46405333,0.000294,2]
[311430154,1705096239869,-332.46405333,0.000294,2]
[311430155,1705096239879,-332.46405333,0.000294,2]
[311430156,1705096239888,-19105.65798421,0.000295,2]
[311430157,1705096239897,-299.56963255,0.000295,3]
[311430158,1705096239907,-883.71,0.0002957,2]
[311430159,1705096239916,-200.26885969,0.000296,2]
[311430160,1705096239926,-55555.0,0.000297,2]
[311430161,1705096239935,-209.0,0.000297,2]
[311430162,1705096239944,-5000.0,0.000297,2]
[311430163,1705096239954,-14858.0879,0.000297,2]
[311430164,1705096239965,-1466.7455,0.000297,2]
[311430165,1705096239974,-332.46405333,0.000297,2]
[311430166,1705096239983,-1830.42089366,0.00029797,2]
[311430167,1705096239993,-425.21,0.00029799,2]
[311430168,1705096240002,-425.21,0.00029799,2]
[311430169,1705096240012,-425.21,0.00029799,2]
[311430170,1705096240021,-425.21,0.00029799,2]
[311430171,1705096240030,-425.21,0.00029799,2]
[311430172,1705096240039,-425.21,0.00029799,2]
[311430173,1705096240049,-425.21,0.00029799,2]
[311430174,1705096240058,-425.21,0.00029799,2]
[311430175,1705096240067,-425.21,0.00029799,2]
[311430176,1705096240077,-425.21,0.00029799,2]
[311430177,1705096240086,-124312.47445188,0.000298,2]
[311430178,1705096240407,-497506.17088823,0.000298,2]
[311430179,1705096240426,-254.24660673,0.000298,2]
[311430180,1705096240437,-804.21669734,0.000298,2]
[311430181,1705096240449,-827.91845062,0.000298,2]
[311430182,1705096240460,-79373.25190696,0.000298,2]
[311430234,1705096241906,-1663.71,0.000274,2]
[311430235,1705096241921,-1663.71,0.000274,2]
[311430236,1705096241936,-1663.71,0.000274,2]
[311430237,1705096241951,-1663.71,0.000274,2]
[311430238,1705096241966,-1663.71,0.000274,2]
[311430239,1705096241982,-1663.71,0.000274,2]
[311430240,1705096241996,-1663.71,0.000274,2]
[311430241,1705096242011,-1663.71,0.000274,2]
[311430242,1705096242027,-179.717,0.00027792,2]
[311430243,1705096242042,-1663.71,0.0002949,2]
[311430244,1705096242057,-11073.15355527,0.000298,2]
[311430245,1705096242074,-739.40570237,0.000298,2]
[311430246,1705096242092,-1351.01302445,0.000298,2]
[311430247,1705096242355,-1663.71,0.0002979,2]
[311430248,1705096242372,-8054.29829905,0.000298,2]
[311430249,1705096242389,-5034.0,0.000298,2]
[311430253,1705096242428,-603.96565913,0.000298,2]
[311430259,1705096242446,-2504.0,0.000298,2]
[311430266,1705096243525,-377.629412,0.00022895,2]
[311430267,1705096243537,-28.01748218,0.00022895,2]
[311430268,1705096243546,-264.44251782,0.000298,2]
[311430269,1705096243558,-1509.3,0.000298,2]
[311430270,1705096243569,-26402.63,0.000298,2]
[311430271,1705096243580,-20350.51987815,0.000298,2]
[311430272,1705096243591,-16427.08071243,0.000298,2]
[311430273,1705096243639,-115352.71404417,0.000298,2]
[311430274,1705096243723,-5044.89999996,0.000298,2]
[311430275,1705096243739,-21736.887,0.000298,2]
[311430276,1705096243757,-1555.43424924,0.000298,2]
[311430277,1705096243768,-17875.81721205,0.000298,2]
[311430299,1705096246044,-1500.6643424,0.000298,2]
[311430305,1705096246971,-2623.85034348,0.000298,2]
[311430306,1705096246983,-304.84667716,0.000298,2]
[311430307,1705096246995,-19695.0928525,0.000298,2]
[311430308,1705096247007,-417.71718952,0.000298,2]
[311430309,1705096247019,-2347.46759022,0.000298,2]
[311430310,1705096247036,-4417.02162439,0.000298,2]
[311430311,1705096247048,-599.70702144,0.000298,2]
[311430312,1705096247059,-1257.3,0.000298,2]
[311430313,1705096247076,-2003.9644242,0.000298,2]
[311430314,1705096247088,-5424.9483132,0.000298,2]
[311430315,1705096247100,-432.5,0.000298,2]
[311430316,1705096247190,-1370.19300514,0.000298,2]
[311430317,1705096247239,-3928.63065729,0.000298,2]
[311430318,1705096247363,-325.95661418,0.000298,2]
[311430319,1705096247379,-24782.77058009,0.000298,2]
[311430320,1705096247391,-4237.15714331,0.000298,2]
[311430321,1705096247403,-3160.62626509,0.000298,2]
[311430322,1705096247881,294.5248,0.00022353,2]
[311430323,1705096282297,22672.3207,0.00022353,2]
[311430324,1705096302175,1353.3043,0.00022353,2]
[311430325,1705096331954,458.14179625,0.00022353,2]
[311430326,1705096353550,26446.0502,0.00022353,2]
[311430327,1705096358795,1466.7455,0.00022353,2]
[311430328,1705096373579,378.2466,0.00022353,2]
[311430329,1705096391880,182.5669972,0.000229,6]
[311430330,1705096397916,1002.1228,0.00022353,2]
[311430331,1705096444296,205.0,0.00022053,2]
[311430332,1705096463995,519.61,0.00022141,2]
[311430334,1705096763447,500.0,0.00022099,2]
[311430335,1705096764616,176.22,0.00022099,2]
[311430336,1705096781963,150.0,0.00022,2]
[311430337,1705096814193,12482.64,0.00022091,2]
[311430338,1705096815371,303.24,0.00022048,2]
[311430339,1705096852695,181.76,0.00021907,2]
[311430340,1705096893277,493.62,0.0001998,2]
[311430341,1705096893497,493.62,0.00022244,2]
[311430342,1705096896402,162.3,0.00022117,2]
[311430343,1705096897020,472.11,0.00021898,2]
[311430344,1705096913912,161.52,0.00021914,2]
[311430345,1705096937640,151.62,0.00022059,2]
[311430347,1705096961892,259.16,0.0002187,2]
[311430368,1705097014739,4432.16,0.00021982,2]
[311430384,1705097092326,765.88,0.00021895,2]
[311430387,1705097154804,400.35879013,0.00022322,2]
[311430388,1705097157504,357.35479194,0.00022997,10]
[311430389,1705097164209,205.0,0.0002186,2]
[311430538,1705097256861,757.4,0.00021751,2]
[311430539,1705097265120,159.75318787,0.00022314,2]
[311430540,1705097280025,266.90586008,0.00022319,2]
[311430541,1705097290165,1516.07957866,0.00022318,2]
[311430542,1705097290190,24624.41122134,0.00022318,2]
[311430544,1705097334861,484.97,0.0001979,2]
[311430545,1705097335090,484.97,0.00022054,2]
[311430547,1705097350801,302.96537039,0.00022304,2]
[311430548,1705097354317,150.0,0.00022,2]
[311430552,1705097360761,12915.16254165,0.00022192,2]
[311430555,1705097383052,289.9683,0.00022308,2]
[311430556,1705097383114,4618.23730477,0.0002219,2]
[311430557,1705097403421,150.0,0.0002219,2]
[311430558,1705097403838,150.0,0.0002219,2]
[311430559,1705097403908,150.0,0.0002219,2]
[311430560,1705097404561,150.0,0.0002219,2]
[311430561,1705097404657,150.0,0.0002219,2]
[311430562,1705097404765,293.36135867,0.0002219,2]
[311430565,1705097410857,337.10569979,0.00022318,2]
[311430602,1705097434475,-2617.16595295,0.00022392,2]
[311430604,1705097434485,-1661.43404705,0.00022393,2]
[311430607,1705097434511,-472.11924445,0.00022393,2]
[311430609,1705097434522,-170.52405578,0.00022393,2]
[311430611,1705097434532,-193.60310862,0.00022393,2]
[311430614,1705097434575,-293.67549657,0.00022393,2]
[311430615,1705097434584,-211.4343928,0.00022393,2]
[311430616,1705097434594,-155.0,0.00022394,2]
[311430617,1705097434603,-246.39576141,0.00022394,2]
[311430618,1705097434612,-3141.15835728,0.00022394,2]
[311430619,1705097434627,-3325.25210067,0.00022395,2]
[311430620,1705097434636,-2136.98369019,0.00022395,2]
[311430621,1705097434644,-160.46586719,0.00022396,2]
[311430622,1705097434653,-954.63433389,0.00022396,2]
[311430623,1705097434664,-1188.35570857,0.00022396,2]
[311430624,1705097434673,-263.08356569,0.00022396,2]
[311430625,1705097434866,-672.73277574,0.00022398,2]
[311430626,1705097434893,-541.65857843,0.00022398,2]
[311430627,1705097434902,-5206.50328095,0.00022401,2]
[311430628,1705097434913,-2931.51785668,0.00022401,2]
[311430629,1705097434928,-8605.69988438,0.00022401,2]
[311430630,1705097434939,-9284.69554484,0.00022401,2]
[311430631,1705097434950,-1716.2099488,0.00022401,2]
[311430632,1705097434962,-576.23513454,0.00022401,2]
[311430633,1705097434973,-3770.06628241,0.00022401,2]
[311430634,1705097434982,-150.0,0.00022402,2]
[311430635,1705097434991,-150.0,0.00022402,2]
[311430636,1705097435000,-1251.07824804,0.00022417,2]
[311430637,1705097435009,-682.98667174,0.00022417,2]
[311430638,1705097435045,-1075.8,0.00022417,2]
[311430639,1705097435056,-2451.21332826,0.00022417,2]
[311430640,1705097435066,-176174.56745751,0.00022418,2]
[311430641,1705097435076,-762.26,0.00022418,2]
[311430642,1705097435086,-342.61663816,0.0002242,2]
[311430643,1705097435095,-150.99,0.0002242,2]
[311430644,1705097435105,-1492.51947359,0.00022423,2]
[311430645,1705097435115,-159.75318787,0.00022431,2]
[311430646,1705097435127,-151.62,0.00022442,2]
[311430647,1705097435136,-499.99,0.00022442,2]
[311430648,1705097435146,-33738.36061184,0.000225,2]
[311430649,1705097435157,-150.0,0.00022548,2]
[311430650,1705097435166,-159.75318787,0.00022548,2]
[311430651,1705097435176,-337.10569978,0.00022559,2]
[311430652,1705097435186,-159.75318787,0.00022666,2]
[311430653,1705097435196,-159.75318787,0.00022783,2]
[311430654,1705097435206,-155.0,0.00022788,2]
[311430655,1705097435215,-5000.0,0.00022791,2]
[311430656,1705097435225,-223.0812846,0.00022798,2]
[311430657,1705097435235,-1255.0842,0.000228,2]
[311430658,1705097435246,-13083.9,0.000228,2]
[311430659,1705097435256,-477.3122,0.000228,2]
[311430660,1705097435266,-337.10569978,0.000228,2]
[311430661,1705097435276,-223.08128456,0.00022813,2]
[311430662,1705097435286,-151.62,0.00022825,2]
[311430663,1705097435296,-223.08128456,0.00022827,2]
[311430664,1705097435309,-223.08128456,0.00022842,2]
[311430665,1705097435319,-223.08128456,0.00022856,2]
[311430666,1705097435328,-223.08128456,0.00022871,2]
[311430667,1705097435338,-765.88,0.00022873,2]
[311430668,1705097435348,-223.08128456,0.00022885,2]
[311430669,1705097435358,-289.68200982,0.0002289,2]
[311430670,1705097435367,-9730.48317814,0.00022898,2]
[311430671,1705097435381,-533.009588,0.00022898,2]
[311430672,1705097435393,-3612.04475606,0.00022898,2]
[311430673,1705097435403,-254.70267151,0.00022898,2]
[311430674,1705097435413,-155.0,0.00022898,2]
[311430675,1705097435423,-522.36940647,0.00022898,2]
[311430676,1705097435432,-221.32103436,0.00022898,2]
[311430677,1705097435442,-242.20345528,0.00022898,2]
[311430678,1705097435451,-376.11195413,0.00022898,2]
[311430679,1705097435461,-265.07070248,0.00022898,2]
[311430680,1705097435471,-2611.62517321,0.00022898,2]
[311430681,1705097435481,-1706.15282945,0.00022898,2]
[311430682,1705097435491,-168.75929348,0.00022898,2]
[311430683,1705097435500,-524.83164077,0.00022898,2]
[311430684,1705097435510,-501.50504212,0.00022898,2]
[311430685,1705097435519,-159.23586212,0.00022898,2]
[311430686,1705097435528,-196.77812328,0.00022898,2]
[311430687,1705097435537,-165.39553542,0.00022898,2]
[311430688,1705097435547,-9294.8643,0.00022898,2]
[311430689,1705097435556,-94263.38234159,0.000229,2]
[311430690,1705097435565,-250.0,0.000229,2]
[311430691,1705097435574,-207093.71,0.000229,2]
[311430692,1705097435584,-1418.41,0.000229,2]
[311430693,1705097435593,-5800.0,0.000229,2]
[311430694,1705097435602,-58000.0,0.000229,2]
[311430695,1705097435612,-1062.14396329,0.000229,2]
[311430696,1705097435622,-159.75318787,0.000229,2]
[311430697,1705097435634,-220.01602481,0.000229,2]
[311430698,1705097435643,-29371.72767693,0.000229,2]
[311430699,1705097435653,-386.64652527,0.000229,2]
[311430700,1705097435662,-6525.42341772,0.000229,2]
[311430701,1705097435671,-8863.50382377,0.000229,2]
[311430702,1705097435681,-323.08701134,0.000229,2]
[311430703,1705097435690,-307.92035562,0.000229,2]
[311430704,1705097435699,-800.0,0.00022959,2]
[311430705,1705097435709,-289.68200982,0.00022989,2]
[311430706,1705097435719,-289.68200982,0.0002299,2]
[311430707,1705097435728,-566.08021087,0.00022996,2]
[311430708,1705097435737,-155.67810569,0.00022996,2]
[311430709,1705097435746,-2124.4944747,0.00022996,2]
[311430710,1705097435755,-5628.33482324,0.00022996,2]
[311430711,1705097435765,-426.27292837,0.00022996,2]
[311430712,1705097435774,-1029.85438659,0.00022998,2]
[311430713,1705097435783,-1202.14844517,0.00022998,2]
[311430714,1705097435793,-163.7690261,0.00022998,2]
[311430715,1705097435802,-155.0,0.00022998,2]
[311430716,1705097435812,-197.79593944,0.00022998,2]
[311430717,1705097435822,-278.13734884,0.00022998,2]
[311430718,1705097435831,-3700.215633,0.00022998,2]
[311430719,1705097435841,-14160.83376585,0.00022998,2]
[311430720,1705097435851,-2983.10898853,0.00022998,2]
[311430721,1705097435860,-432114.31396733,0.00022998,2]
[311430722,1705097435873,-7109.54364909,0.00022998,2]
[311430723,1705097436465,-12830.1,0.00022998,2]
[311430724,1705097436477,-400.34912983,0.00022998,2]
[311430725,1705097436695,-52470.48389402,0.00022998,2]
[311430726,1705097436705,-369.25528004,0.00022998,2]
[311430727,1705097436715,-155.46774164,0.00022998,2]
[311430728,1705097436732,-1322.32930974,0.00022998,2]
[311430729,1705097436748,-1762.36251206,0.00022998,2]
[311430730,1705097436758,-30070.10126239,0.00022999,2]
[311430731,1705097436771,-524.96989304,0.00022999,2]
[311430812,1705097437532,-10682.50000001,0.00022999,2]
[311430815,1705097437544,-780.0,0.00022999,2]
[311430818,1705097437555,-818.10924833,0.00022999,2]
[311430823,1705097437567,-2139.25,0.00022999,2]
[311430826,1705097437579,-12566.87300365,0.00022999,2]
[311430831,1705097437595,-1864.54905793,0.00022999,2]
[311430833,1705097437606,-1219.77729782,0.00022999,2]
[311430839,1705097437636,-311.27883709,0.00022999,2]
[311430841,1705097437647,-499.16534257,0.00022999,2]
[311430843,1705097437658,-5512.17264088,0.00022999,2]
[311430845,1705097437671,-1216.44,0.00022999,2]
[311430846,1705097437683,-409.90269655,0.00022999,2]
[311430848,1705097437699,-1498.95358187,0.00022999,2]
[311430850,1705097437711,-1174.37054762,0.00022999,2]
[311430852,1705097437722,-471.26363375,0.00022999,2]
[311430854,1705097437733,-538.88,0.00022999,2]
[311430866,1705097437962,-1821.82,0.00022999,2]
[311430867,1705097437975,-43019.00000001,0.00022999,2]